bitfinex/quotes_BTCUSD_20250928
["timestamp","ask_amount","ask_price","bid_price","bid_amount"]
[1759024767712,2.61389754,109660.0,109650.0,0.06867013]
[1759024768321,2.38464199,109660.0,109650.0,0.06867013]
[1759024768520,2.38464199,109660.0,109650.0,0.06967013]
[1759024770084,2.17538799,109660.0,109650.0,0.06967013]
[1759024772351,2.40464354,109660.0,109650.0,0.06967013]
[1759024775899,2.40464354,109660.0,109650.0,0.06666013]
[1759024780145,2.17538799,109660.0,109650.0,0.06666013]
[1759024781030,1.94613244,109660.0,109650.0,0.06666013]
[1759024781232,2.17538799,109660.0,109650.0,0.06964013]
[1759024783027,2.17538799,109660.0,109650.0,0.06666013]
[1759024785923,2.17538799,109660.0,109650.0,0.06453013]
[1759024786475,2.17538799,109660.0,109650.0,0.06648013]
[1759024786675,2.17538799,109660.0,109650.0,0.06946013]
[1759024786883,2.17538799,109660.0,109650.0,0.06648013]
[1759024789327,2.17401999,109660.0,109650.0,0.06648013]
[1759024792608,1.99300609,109660.0,109650.0,0.06648013]
[1759024792819,2.17538799,109660.0,109650.0,0.06648013]
[1759024797222,2.17538799,109660.0,109650.0,0.06453013]
[1759024798382,2.40464354,109660.0,109650.0,0.06453013]
[1759024798584,2.25175578,109660.0,109650.0,0.06453013]
[1759024801174,1.94613244,109660.0,109650.0,0.06453013]
[1759024801389,2.25175578,109660.0,109650.0,0.06453013]
[1759024802997,2.25652866,109660.0,109650.0,0.06453013]
[1759024803208,2.28145503,109660.0,109650.0,0.06453013]
[1759024803411,1.99533503,109660.0,109650.0,0.03708413]
[1759024803620,2.28133503,109660.0,109650.0,0.03708413]
[1759024804373,1.97040866,109660.0,109650.0,0.03708413]
[1759024804584,2.25640866,109660.0,109650.0,0.03708413]
[1759024805237,1.66478532,109660.0,109650.0,0.03708413]
[1759024805464,2.25640866,109660.0,109650.0,0.03909413]
[1759024806284,1.97040866,109660.0,109650.0,0.03708413]
[1759024806498,2.25640866,109660.0,109650.0,0.03708413]
[1759024807446,1.97040866,109660.0,109650.0,0.03708413]
[1759024807639,2.25640866,109660.0,109650.0,0.03708413]
[1759024811189,2.25636866,109660.0,109650.0,0.03708413]
[1759024811617,1.97040866,109660.0,109650.0,0.03708413]
[1759024811806,2.25636866,109660.0,109650.0,0.03708413]
[1759024812377,1.97040866,109660.0,109650.0,0.03708413]
[1759024812575,2.25636866,109660.0,109650.0,0.03708413]
[1759024814479,1.97040866,109660.0,109650.0,0.03708413]
[1759024814684,2.25636866,109660.0,109650.0,0.03708413]
[1759024816197,1.97040866,109660.0,109650.0,0.03708413]
[1759024816405,2.25636866,109660.0,109650.0,0.03708413]
[1759024818014,2.25636866,109660.0,109650.0,0.06453151]
[1759024834525,2.25636866,109660.0,109650.0,0.03708413]
[1759024835108,1.97040866,109660.0,109650.0,0.03708413]
[1759024835351,2.25632866,109660.0,109650.0,0.03708413]
[1759024835835,1.66478532,109660.0,109650.0,0.03708413]
[1759024836014,2.25632866,109660.0,109650.0,0.03708413]
[1759024840469,2.04233556,109660.0,109650.0,0.03708413]
[1759024840658,1.75641612,109660.0,109650.0,0.03708413]
[1759024840810,2.04233612,109660.0,109650.0,0.03708413]
[1759024841858,1.82839601,109660.0,109650.0,0.03708413]
[1759024842197,2.01077791,109660.0,109650.0,0.03708413]
[1759024844639,1.72485791,109660.0,109650.0,0.03708413]
[1759024844841,2.01073791,109660.0,109650.0,0.03708413]
[1759024846843,1.72485791,109660.0,109650.0,0.03708413]
[1759024847090,2.01073791,109660.0,109650.0,0.03708413]
[1759024852049,2.01551168,109660.0,109650.0,0.03708413]
[1759024856448,1.72963168,109660.0,109650.0,0.03708413]
[1759024856759,2.01547168,109660.0,109650.0,0.03708413]
[1759024857492,2.04225701,109660.0,109650.0,0.04237413]
[1759024857680,2.04225701,109660.0,109650.0,0.03914413]
[1759024858543,2.19514781,109660.0,109650.0,0.03914413]
[1759024859240,1.73663367,109660.0,109650.0,0.03914413]
[1759024859469,2.19514781,109660.0,109650.0,0.03914413]
[1759024861492,2.20155221,109660.0,109650.0,0.03914413]
[1759024865349,1.45719807,109660.0,109650.0,0.03914413]
[1759024865518,2.20151221,109660.0,109650.0,0.04237413]
[1759024868182,1.91571221,109660.0,109650.0,0.04237413]
[1759024868891,2.20151221,109660.0,109650.0,0.04237413]
[1759024869121,1.91571221,109660.0,109650.0,0.04237413]
[1759024869343,2.04113521,109660.0,109650.0,0.04237413]
[1759024873834,0.18239854,109650.0,109640.0,0.16383141]
[1759024874051,1.29206394,109650.0,109640.0,0.18415944]
[1759024874262,1.36201247,109650.0,109640.0,0.18415944]
[1759024874888,1.54441101,109650.0,109640.0,0.18415944]
[1759024875099,1.54441101,109650.0,109640.0,0.19015944]
[1759024875927,1.54441101,109650.0,109640.0,0.21664944]
[1759024876129,1.54441101,109650.0,109640.0,0.19840793]
[1759024878828,1.54440914,109650.0,109640.0,0.19840793]
[1759024881196,1.13275353,109650.0,109640.0,0.19840793]
[1759024881404,1.3620106,109650.0,109640.0,0.19840793]
[1759024882194,1.54440914,109650.0,109640.0,0.19840793]
[1759024884184,1.31515207,109650.0,109640.0,0.19840793]
[1759024884398,1.54440914,109650.0,109640.0,0.19840793]
[1759024884845,1.54652914,109650.0,109640.0,0.19840793]
[1759024885147,1.54652914,109650.0,109640.0,0.19519793]
[1759024886355,1.31727207,109650.0,109640.0,0.19519793]
[1759024886562,1.54652914,109650.0,109640.0,0.19817793]
[1759024887598,1.3641306,109650.0,109640.0,0.19817793]
[1759024888109,1.54652914,109650.0,109640.0,0.19817793]
[1759024888495,1.13275353,109650.0,109640.0,0.19817793]
[1759024889120,1.3620106,109650.0,109640.0,0.19817793]
[1759024889852,1.37631856,109650.0,109640.0,0.19817793]
[1759024891900,1.5587171,109650.0,109640.0,0.48461793]
[1759024892110,1.5608371,109650.0,109640.0,0.48461793]
[1759024892540,1.5587171,109650.0,109640.0,0.48461793]
[1759024898167,1.5586715,109650.0,109640.0,0.48461793]
[1759024898393,1.5607915,109650.0,109640.0,0.48461793]
[1759024899477,1.5607915,109650.0,109640.0,0.19817793]
[1759024899807,1.5607915,109650.0,109640.0,0.48449793]
[1759024900230,1.5607915,109650.0,109640.0,0.48151793]
[1759024900887,1.5607915,109650.0,109640.0,0.19519793]
[1759024901096,1.5639615,109650.0,109640.0,0.19315793]
[1759024901314,1.5639615,109650.0,109640.0,0.47951793]
[1759024901723,1.54965354,109650.0,109640.0,0.47951793]
[1759024903775,1.54648354,109650.0,109640.0,0.48148793]
[1759024904260,1.54965354,109650.0,109640.0,0.48148793]
[1759024904622,1.56079166,109650.0,109640.0,0.48148793]
[1759024904830,1.33153459,109650.0,109640.0,0.48446793]
[1759024905032,1.56079166,109650.0,109640.0,0.48148793]
[1759024905796,1.37839312,109650.0,109640.0,0.48446793]
[1759024905999,1.37627312,109650.0,109640.0,0.48446793]
[1759024906890,1.55867166,109650.0,109640.0,0.48446793]
[1759024907279,1.56079166,109650.0,109640.0,0.48446793]
[1759024907693,1.37627312,109650.0,109640.0,0.48446793]
[1759024908901,1.14701605,109650.0,109640.0,0.48446793]
[1759024909117,1.37627312,109650.0,109640.0,0.48446793]
[1759024909335,1.14701605,109650.0,109640.0,0.48446793]
[1759024910390,0.97571165,109650.0,109640.0,0.48446793]
[1759024911266,1.20496872,109650.0,109640.0,0.48446793]
[1759024911645,0.97571165,109650.0,109640.0,0.48446793]
[1759024913114,0.97571165,109650.0,109640.0,0.19810793]
[1759024913301,0.97571165,109650.0,109640.0,0.48458793]
[1759024913513,0.796582,109650.0,109640.0,0.48458793]
[1759024917127,0.796582,109650.0,109640.0,0.48454793]
[1759024920164,0.798572,109650.0,109640.0,0.48454793]
[1759024920693,1.10421532,109650.0,109640.0,0.48454793]
[1759024921987,1.10421532,109650.0,109640.0,0.19810793]
[1759024922169,1.10421532,109650.0,109640.0,0.48148793]
[1759024923368,1.10421532,109650.0,109640.0,0.19820793]
[1759024923369,0.796582,109650.0,109640.0,0.19820793]
[1759024923587,1.10421532,109650.0,109640.0,0.48456793]
[1759024923813,1.10421532,109650.0,109640.0,0.19820793]
[1759024924029,1.10421532,109650.0,109640.0,0.48152793]
[1759024924735,0.798572,109650.0,109640.0,0.48460793]
[1759024925143,1.10421532,109650.0,109640.0,0.48460793]
[1759024925527,0.796582,109650.0,109640.0,0.51475983]
[1759024926559,0.796582,109650.0,109640.0,0.697175]
[1759024929029,0.796582,109650.0,109640.0,0.410775]
[1759024929243,0.796582,109650.0,109640.0,0.697215]
[1759024930266,0.796582,109650.0,109640.0,0.961715]
[1759024931042,0.796582,109650.0,109640.0,0.675275]
[1759024931242,0.796582,109650.0,109640.0,0.961755]
[1759024936879,0.62889,109650.0,109640.0,0.961755]
[1759024937153,0.33826709,109660.0,109640.0,0.961755]
[1759024937353,0.03903145,109660.0,109650.0,0.01823985]
[1759024937501,0.94780477,109660.0,109650.0,0.02030985]
[1759024937706,0.94780477,109660.0,109650.0,0.04466985]
[1759024937968,0.95103477,109660.0,109650.0,0.04466985]
[1759024938173,0.64539145,109660.0,109650.0,0.04466985]
[1759024938339,0.94780477,109660.0,109650.0,0.07211271]
[1759024938544,0.64216145,109660.0,109650.0,0.07211271]
[1759024938751,0.94780477,109660.0,109650.0,0.07211271]
[1759024938902,0.95103477,109660.0,109650.0,0.07211271]
[1759024939104,0.95103477,109660.0,109650.0,0.34031286]
[1759024939791,0.95103477,109660.0,109650.0,0.34131286]
[1759024940000,0.95103477,109660.0,109650.0,0.05587286]
[1759024940201,0.95103477,109660.0,109650.0,0.34231286]
[1759024941459,0.95103477,109660.0,109650.0,0.34024286]
[1759024945047,0.95103477,109660.0,109650.0,0.35024286]
[1759024946106,0.95103477,109660.0,109650.0,0.06380286]
[1759024946320,0.95103477,109660.0,109650.0,0.36844271]
[1759024946522,0.95103477,109660.0,109650.0,0.35020286]
[1759024946726,0.95103477,109660.0,109650.0,0.35016286]
[1759024947154,1.13341667,109660.0,109650.0,0.35016286]
[1759024947340,0.95103477,109660.0,109650.0,0.35016286]
[1759024947746,0.30773332,109660.0,109650.0,0.35016286]
[1759024949835,0.30773332,109660.0,109650.0,0.35228286]
[1759024953002,0.30773332,109660.0,109650.0,0.64987476]
[1759024953214,0.30773332,109660.0,109650.0,0.64967476]
[1759024953416,0.30773332,109660.0,109650.0,0.8320733]
[1759024955019,0.30773332,109660.0,109650.0,0.8320333]
[1759024956324,0.30773332,109660.0,109650.0,0.5675333]
[1759024957494,0.30564332,109660.0,109650.0,0.5675333]
[1759024959620,0.31205108,109660.0,109650.0,0.5675333]
[1759024960061,0.3263579,109660.0,109650.0,0.5675333]
[1759024962582,0.3284479,109660.0,109650.0,0.5673333]
[1759024962795,0.02280458,109660.0,109650.0,0.5673333]
[1759024963002,0.3284479,109660.0,109650.0,0.5673333]
[1759024967038,0.3284479,109660.0,109650.0,0.5672933]
[1759024967466,0.3263579,109660.0,109650.0,0.5672933]
[1759024971209,0.32635448,109660.0,109650.0,0.5672933]
[1759024971984,0.31204766,109660.0,109650.0,0.5672933]
[1759024973190,0.31204766,109660.0,109650.0,0.2814133]
[1759024973376,0.31204766,109660.0,109650.0,0.5672933]
[1759024975219,0.30564332,109660.0,109650.0,0.5672933]
[1759024975426,0.312048,109660.0,109650.0,0.5672933]
[1759024977677,0.314028,109660.0,109650.0,0.09607476]
[1759024977901,0.314028,109660.0,109650.0,0.38186476]
[1759024981375,0.314028,109660.0,109650.0,0.09598476]
[1759024981587,0.314028,109660.0,109650.0,0.38499476]
[1759024981771,0.314028,109660.0,109650.0,0.38495476]
[1759024982234,0.00640468,109660.0,109650.0,0.38495476]
[1759024982506,0.312048,109660.0,109650.0,0.38495476]
[1759024982707,0.46477028,109660.0,109650.0,0.38495476]
[1759024983463,0.46477028,109660.0,109650.0,0.38186476]
[1759024983464,0.46675028,109660.0,109650.0,0.38186476]
[1759024983888,0.46675028,109660.0,109650.0,0.38495476]
[1759024985173,0.46675028,109660.0,109650.0,0.38503476]
[1759024986413,0.00640468,109660.0,109650.0,0.5674333]
[1759024986684,0.23558748,109660.0,109650.0,0.38503476]
[1759024987716,0.23558748,109660.0,109650.0,0.5674333]
[1759024988560,0.00640468,109660.0,109650.0,0.5674333]
[1759024988779,0.23558748,109660.0,109650.0,0.5674333]
[1759024988976,0.00640468,109660.0,109650.0,0.7966161]
[1759024989378,0.00640468,109660.0,109650.0,0.5674333]
[1759024989585,0.00640468,109660.0,109650.0,0.7956161]
[1759024990051,0.00640468,109660.0,109650.0,0.5694333]
[1759024990181,0.00640468,109660.0,109650.0,0.5664333]
[1759024990581,0.00640468,109660.0,109650.0,0.5704333]
[1759024990820,0.00640468,109660.0,109650.0,0.5734333]
[1759024991395,0.00640468,109660.0,109650.0,0.5704333]
[1759024991596,0.00640468,109660.0,109650.0,0.5744333]
[1759024994032,0.00640468,109660.0,109650.0,0.5745533]
[1759024994243,0.00640468,109660.0,109650.0,0.6695933]
[1759024994934,0.00640468,109660.0,109650.0,0.2884733]
[1759024995140,0.00640468,109660.0,109650.0,0.6695933]
[1759024995296,0.00640468,109660.0,109650.0,0.6695533]
[1759024996304,0.26635877,109670.0,109660.0,0.0301519]
[1759024996532,0.24989405,109670.0,109660.0,0.0322719]
[1759024996752,0.24989405,109670.0,109660.0,0.0595419]
[1759024997057,0.24989405,109670.0,109660.0,0.08698059]
[1759024997654,0.25187405,109670.0,109660.0,0.37001059]
[1759024997839,0.25187405,109670.0,109660.0,0.37301059]
[1759024998411,0.25187405,109670.0,109660.0,0.08697059]
[1759024998636,0.25187405,109670.0,109660.0,0.37301059]
[1759024998813,0.25187405,109670.0,109660.0,0.37601059]
[1759024999774,0.25187405,109670.0,109660.0,0.08997059]
[1759025000006,0.43423932,109670.0,109660.0,0.37597059]
[1759025000457,0.25187405,109670.0,109660.0,0.37597059]
[1759025002489,0.25187405,109670.0,109660.0,0.37916059]
[1759025003846,0.25187405,109670.0,109660.0,0.09316059]
[1759025004060,0.25187405,109670.0,109660.0,0.37912059]
[1759025004277,0.25187405,109670.0,109660.0,0.37908059]
[1759025004485,0.43423932,109670.0,109660.0,0.09316059]
[1759025004699,0.43423932,109670.0,109660.0,0.37908059]
[1759025007010,0.43713932,109670.0,109660.0,0.08785059]
[1759025007229,0.66632212,109670.0,109660.0,0.05769869]
[1759025007439,0.66632212,109670.0,109660.0,0.34361869]
[1759025007863,0.43713932,109670.0,109660.0,0.34361869]
[1759025009120,0.42283335,109670.0,109660.0,0.34361869]
[1759025012374,0.42283458,109670.0,109660.0,0.34361869]
[1759025013887,0.41993458,109670.0,109660.0,0.34361869]
[1759025014860,0.41993458,109670.0,109660.0,0.34876869]
[1759025014861,0.41795458,109670.0,109660.0,0.34876869]
[1759025015606,0.41993458,109670.0,109660.0,0.34876869]
[1759025018279,0.41993458,109670.0,109660.0,0.34557869]
[1759025018511,0.19075178,109670.0,109660.0,0.34557869]
[1759025018692,0.41993458,109670.0,109660.0,0.34557869]
[1759025020423,0.41993458,109670.0,109660.0,0.34361869]
[1759025020861,0.41993458,109670.0,109660.0,0.05769869]
[1759025021082,0.42283759,109670.0,109660.0,0.34353869]
[1759025021301,0.43714345,109670.0,109660.0,0.34353869]
[1759025021532,0.43424345,109670.0,109660.0,0.34353869]
[1759025021722,0.43424345,109670.0,109660.0,0.34361869]
[1759025023688,0.43714345,109670.0,109660.0,0.34361869]
[1759025024373,0.45515331,109670.0,109660.0,0.34361869]
[1759025024596,0.63610858,109670.0,109660.0,0.34361869]
[1759025026453,0.62180272,109670.0,109660.0,0.34361869]
[1759025028709,0.62180272,109670.0,109660.0,0.34353869]
[1759025028924,0.62180272,109670.0,109660.0,0.34549869]
[1759025029131,0.62180272,109670.0,109660.0,0.34868869]
[1759025030148,0.41944759,109670.0,109660.0,0.34868869]
[1759025030759,0.4337535,109670.0,109660.0,0.34868869]
[1759025032592,0.25480671,109670.0,109660.0,0.34868869]
[1759025036641,0.2405008,109670.0,109660.0,0.34868869]
[1759025042589,0.4893821,109670.0,109660.0,0.34868869]
[1759025043990,0.4893821,109670.0,109660.0,0.06284869]
[1759025044197,0.4893821,109670.0,109660.0,0.34868869]
[1759025044409,0.4893821,109670.0,109660.0,0.06284869]
[1759025044626,0.4893821,109670.0,109660.0,0.34868869]
[1759025048387,0.2870501,109670.0,109660.0,0.06284869]
[1759025048594,0.46941537,109670.0,109660.0,0.34868869]
[1759025049387,0.4878921,109670.0,109660.0,0.06284869]
[1759025049591,0.4878921,109670.0,109660.0,0.34868869]
[1759025049991,0.4878921,109670.0,109660.0,0.06284869]
[1759025050196,0.4878921,109670.0,109660.0,0.34868869]
[1759025051043,0.4878921,109670.0,109660.0,0.06284869]
[1759025051249,0.4878921,109670.0,109660.0,0.34868869]
[1759025051447,0.50219823,109670.0,109660.0,0.34868869]
[1759025053045,0.50219823,109670.0,109660.0,0.06284869]
[1759025053277,0.50219823,109670.0,109660.0,0.34868869]
[1759025055269,0.1966714,109670.0,109660.0,0.34868869]
[1759025055473,0.50219823,109670.0,109660.0,0.34868869]
[1759025055903,0.50861272,109670.0,109660.0,0.34868869]
[1759025060110,0.20308589,109670.0,109660.0,0.34868869]
[1759025060324,0.50861272,109670.0,109660.0,0.34868869]
[1759025061166,0.32624745,109670.0,109660.0,0.34868869]
[1759025062757,0.10571513,109670.0,109660.0,0.34868869]
[1759025062963,0.01430598,109670.0,109660.0,0.34868869]
[1759025069803,0.52003357,109680.0,109660.0,0.34868869]
[1759025070023,8.0,109670.0,109660.0,0.52788059]
[1759025070275,8.0,109670.0,109660.0,0.5004419]
[1759025070463,8.0,109670.0,109660.0,0.52788241]
[1759025070692,8.0,109670.0,109660.0,0.52794241]
[1759025070913,8.0,109670.0,109660.0,0.52594241]
[1759025071131,7.7850524,109670.0,109660.0,0.52594241]
[1759025071340,0.02304,109680.0,109660.0,0.52594241]
[1759025071550,0.02304,109680.0,109670.0,0.00306]
[1759025071694,0.21372425,109690.0,109670.0,0.00523]
[1759025071898,8.0,109680.0,109670.0,0.05691914]
[1759025072738,8.0143052,109680.0,109670.0,0.05691914]
[1759025072935,0.0143052,109680.0,109670.0,0.05691914]
[1759025073576,0.0143052,109680.0,109670.0,0.07515566]
[1759025074220,0.0143052,109680.0,109670.0,0.07615566]
[1759025074657,0.02071121,109680.0,109670.0,0.07615566]
[1759025075085,0.02071121,109680.0,109670.0,0.07715566]
[1759025076907,0.00640601,109680.0,109670.0,0.07715566]
[1759025078439,0.33910343,109690.0,109670.0,0.07715566]
[1759025078652,8.0,109680.0,109670.0,0.07715566]
[1759025078803,8.0,109680.0,109670.0,0.04971652]
[1759025079046,8.0,109680.0,109670.0,0.07715509]
[1759025079364,8.0,109680.0,109670.0,0.07615509]
[1759025081417,8.0,109680.0,109670.0,0.07715509]
[1759025084164,8.0,109680.0,109670.0,0.36291509]
[1759025084377,8.0,109680.0,109670.0,0.34467857]
[1759025088133,8.0,109680.0,109670.0,0.52704384]
[1759025089912,8.0,109680.0,109670.0,0.34467857]
[1759025090331,8.00640264,109680.0,109670.0,0.34467857]
[1759025090563,0.00640264,109680.0,109670.0,0.34467857]
[1759025091542,0.00640264,109680.0,109670.0,0.52704384]
[1759025093265,0.00640264,109680.0,109670.0,0.34463857]
[1759025093536,0.00640264,109680.0,109670.0,0.05585857]
[1759025093775,0.00640264,109680.0,109670.0,0.35981509]
[1759025093987,0.00640264,109680.0,109670.0,0.34157857]
[1759025094195,0.00640264,109680.0,109670.0,0.34471857]
[1759025097723,0.18875129,109680.0,109670.0,0.05899857]
[1759025097938,0.31192947,109680.0,109670.0,0.34471857]
[1759025098137,0.00640264,109680.0,109670.0,0.34471857]
[1759025098948,0.00640264,109680.0,109670.0,0.52708384]
[1759025099374,0.00640264,109680.0,109670.0,0.55723574]
[1759025101159,0.00640264,109680.0,109670.0,0.86276257]
[1759025101400,0.03876466,109690.0,109680.0,0.21250055]
[1759025101595,0.02071081,109690.0,109680.0,0.21564055]
[1759025101807,0.02071081,109690.0,109680.0,0.24213055]
[1759025102024,0.02071081,109690.0,109680.0,0.26956445]
[1759025102247,0.02071081,109690.0,109680.0,0.36460445]
[1759025102454,0.01430466,109690.0,109680.0,0.36460445]
[1759025102668,0.01430466,109690.0,109680.0,0.5935981]
[1759025102901,0.01430466,109690.0,109680.0,0.4985581]
[1759025103116,0.01430466,109690.0,109680.0,0.55524445]
[1759025103328,0.01430466,109690.0,109680.0,0.26956445]
[1759025103770,0.01430466,109690.0,109680.0,0.65028445]
[1759025104206,0.01430466,109690.0,109680.0,0.65828445]
[1759025105097,0.0733045,109700.0,109680.0,0.65828445]
[1759025105309,0.23539321,109700.0,109690.0,0.0182332]
[1759025105526,0.23539321,109700.0,109690.0,0.0233432]
[1759025105745,0.23539321,109700.0,109690.0,0.07529667]
[1759025106635,0.23539321,109700.0,109690.0,0.28978059]
[1759025106821,0.23539321,109700.0,109690.0,0.27154739]
[1759025107027,0.30178817,109710.0,109690.0,0.27154739]
[1759025107238,0.30818584,109710.0,109700.0,0.48622694]
[1759025107458,0.07919219,109710.0,109700.0,0.4731054]
[1759025107649,0.30818584,109710.0,109700.0,0.4976254]
[1759025107804,0.30178817,109710.0,109700.0,0.52505626]
[1759025108024,0.30818354,109710.0,109700.0,0.52505626]
[1759025108443,0.30818354,109710.0,109700.0,0.34274086]
[1759025109410,0.30178817,109710.0,109700.0,0.34274086]
[1759025109829,0.22899365,109710.0,109700.0,0.34274086]
[1759025110911,0.18949234,109720.0,109700.0,0.34374086]
[1759025111122,8.22899365,109710.0,109700.0,0.34374086]
[1759025111333,0.22899365,109710.0,109700.0,0.31631]
[1759025111544,0.22899365,109710.0,109700.0,0.34274087]
[1759025111901,0.23893341,109710.0,109700.0,0.34474087]
[1759025113182,0.03814702,109710.0,109700.0,0.34474087]
[1759025113386,0.03814702,109710.0,109700.0,0.34674087]
[1759025115497,0.0445329,109710.0,109700.0,0.34674087]
[1759025117117,0.0445329,109710.0,109700.0,0.34670087]
[1759025118074,0.01632564,109710.0,109700.0,0.52901627]
[1759025118288,0.24531929,109710.0,109700.0,0.52901627]
[1759025119425,0.01632564,109710.0,109700.0,0.52901627]
[1759025119639,0.24531929,109710.0,109700.0,0.52901627]
[1759025119829,0.01632564,109710.0,109700.0,0.52901627]
[1759025120075,0.24531929,109710.0,109700.0,0.52901627]
[1759025122158,0.01632564,109710.0,109700.0,0.24337627]
[1759025122363,0.01632564,109710.0,109700.0,0.34352087]
[1759025122569,0.01632564,109710.0,109700.0,0.34663087]
[1759025125398,0.01632564,109710.0,109700.0,0.06103087]
[1759025125603,0.01632564,109710.0,109700.0,0.36486241]
[1759025125903,0.01632564,109710.0,109700.0,0.34663087]
[1759025128720,0.42761807,109710.0,109700.0,0.05595087]
[1759025129089,0.42761807,109710.0,109700.0,0.32171087]
[1759025129090,8.42761807,109710.0,109700.0,0.32171087]
[1759025129503,8.19863711,109710.0,109700.0,0.32171087]
[1759025129713,8.42763076,109710.0,109700.0,0.32171087]
[1759025130108,8.42763076,109710.0,109700.0,0.33955087]
[1759025130486,8.42763076,109710.0,109700.0,0.33755087]
[1759025130870,8.42763076,109710.0,109700.0,0.33855087]
[1759025132021,8.44193211,109710.0,109700.0,0.33855087]
[1759025133710,8.44193211,109710.0,109700.0,0.05295087]
[1759025133914,8.44193211,109710.0,109700.0,0.33855087]
[1759025135718,8.44193211,109710.0,109700.0,0.05295087]
[1759025135924,8.44193211,109710.0,109700.0,0.33855087]
[1759025136961,8.44193211,109710.0,109700.0,0.05295087]
[1759025137155,8.44193211,109710.0,109700.0,0.33855087]
[1759025138151,8.44144096,109710.0,109700.0,0.33855087]
[1759025142988,8.21244731,109710.0,109700.0,0.33855087]
[1759025143187,8.44144096,109710.0,109700.0,0.33855087]
[1759025144118,8.44144096,109710.0,109700.0,0.05295087]
[1759025144325,8.44144096,109710.0,109700.0,0.33855087]
[1759025145795,8.44144096,109710.0,109700.0,0.34367087]
[1759025147558,8.44144096,109710.0,109700.0,0.34056087]
[1759025147791,8.44144096,109710.0,109700.0,0.05295087]
[1759025148032,8.44144096,109710.0,109700.0,0.33855087]
[1759025148499,8.44144096,109710.0,109700.0,0.05295087]
[1759025148936,8.67043461,109710.0,109700.0,0.05295087]
[1759025149191,8.44144096,109710.0,109700.0,0.05295087]
[1759025149683,8.67043461,109710.0,109700.0,0.05295087]
[1759025150742,8.95603461,109710.0,109700.0,0.05295087]
[1759025159681,8.67043461,109710.0,109700.0,0.05295087]
[1759025160025,8.95599461,109710.0,109700.0,0.05295087]
[1759025161778,8.72700096,109710.0,109700.0,0.05819087]
[1759025161988,8.95599461,109710.0,109700.0,0.05819087]
[1759025162438,8.67043461,109710.0,109700.0,0.05819087]
[1759025164583,8.21244731,109710.0,109700.0,0.05819087]
[1759025164842,8.51781236,109710.0,109700.0,0.05819087]
[1759025166634,0.03014853,109710.0,109700.0,0.10657431]
[1759025166837,0.01584718,109710.0,109700.0,0.27065817]
[1759025167038,0.01584718,109710.0,109700.0,0.36565817]
[1759025167456,0.01259718,109710.0,109700.0,0.67102322]
[1759025167656,0.00721,109720.0,109710.0,0.18229878]
[1759025167867,0.0225,109730.0,109720.0,0.21243407]
[1759025168087,0.02937459,109730.0,109720.0,0.21767407]
[1759025168301,0.02296442,109730.0,109720.0,0.24239407]
[1759025168497,0.02296442,109730.0,109720.0,0.26981866]
[1759025169139,0.32832947,109730.0,109720.0,0.08753649]
[1759025169342,0.53052985,109730.0,109720.0,0.31413649]
[1759025169773,0.53052985,109730.0,109720.0,0.08753649]
[1759025169971,0.04092924,109730.0,109720.0,0.37385649]
[1759025170271,0.04092924,109730.0,109720.0,0.55613866]
[1759025170482,0.04092924,109730.0,109720.0,0.55813866]
[1759025170870,0.04092924,109730.0,109720.0,0.56013866]
[1759025174166,0.34629429,109730.0,109720.0,0.37785649]
[1759025175053,0.34629429,109730.0,109720.0,0.56013866]
[1759025175899,0.34629429,109730.0,109720.0,0.37785649]
[1759025177355,0.34629429,109730.0,109720.0,0.56013866]
[1759025178681,0.34629429,109730.0,109720.0,0.37785649]
[1759025179006,0.04092924,109730.0,109720.0,0.37785649]
[1759025179428,0.04092924,109730.0,109720.0,0.09153649]
[1759025179649,0.04092924,109730.0,109720.0,0.37769649]
[1759025180217,0.34629429,109730.0,109720.0,0.37769649]
[1759025180457,0.04092924,109730.0,109720.0,0.37769649]
[1759025183566,0.35840328,109740.0,109720.0,0.37769649]
[1759025183779,0.36492754,109740.0,109720.0,0.37769649]
[1759025184001,0.36788754,109740.0,109720.0,0.37769649]
[1759025184224,0.36788754,109740.0,109720.0,0.3502719]
[1759025184432,0.36788754,109740.0,109730.0,0.02742357]
[1759025184861,0.36997754,109740.0,109730.0,0.05142357]
[1759025185700,0.18578955,109740.0,109730.0,0.05142357]
[1759025185918,0.38579216,109740.0,109730.0,0.05142357]
[1759025191048,0.21157687,109740.0,109730.0,0.05142357]
[1759025191265,0.51694192,109740.0,109730.0,0.05142357]
[1759025193307,0.80270192,109740.0,109730.0,0.05142357]
[1759025194650,0.80262192,109740.0,109730.0,0.05142357]
[1759025195036,0.80262192,109740.0,109730.0,0.05343357]
[1759025195176,0.80262192,109740.0,109730.0,0.05142357]
[1759025195598,0.62033158,109740.0,109730.0,0.05142357]
[1759025196071,0.78258053,109740.0,109730.0,0.05142357]
[1759025196305,0.78400053,109740.0,109730.0,0.05343357]
[1759025197094,0.78396053,109740.0,109730.0,0.05343357]
[1759025198553,0.78396053,109740.0,109730.0,0.05142357]
[1759025198987,0.78396053,109740.0,109730.0,0.05343357]
[1759025199954,0.46926895,109740.0,109730.0,0.05343357]
[1759025200286,0.774634,109740.0,109730.0,0.05343357]
[1759025202255,0.80610276,109740.0,109730.0,0.05343357]
[1759025204781,0.80610276,109740.0,109730.0,0.05142357]
[1759025204993,0.80610276,109740.0,109730.0,0.05343357]
[1759025205222,0.80602276,109740.0,109730.0,0.05663357]
[1759025205640,0.80602276,109740.0,109730.0,0.05343357]
[1759025206080,0.62377381,109740.0,109730.0,0.05343357]
[1759025206700,0.80602276,109740.0,109730.0,0.05343357]
[1759025207421,0.80602276,109740.0,109730.0,0.05142357]
[1759025207710,0.80602276,109740.0,109730.0,0.05343357]
[1759025208098,0.81244022,109740.0,109730.0,0.05343357]
[1759025208310,0.81244022,109740.0,109730.0,0.05142357]
[1759025208522,0.81333022,109740.0,109730.0,0.024]
[1759025208940,0.81244022,109740.0,109730.0,0.024]
[1759025210047,0.52692022,109740.0,109730.0,0.024]
[1759025210268,0.62877127,109740.0,109730.0,0.02921]
[1759025210737,0.63019127,109740.0,109730.0,0.02921]
[1759025211342,0.34467127,109740.0,109730.0,0.02921]
[1759025211343,0.63019127,109740.0,109730.0,0.02921]
[1759025211737,0.81244022,109740.0,109730.0,0.02921]
[1759025212680,0.63019127,109740.0,109730.0,0.02921]
[1759025212907,0.52692022,109740.0,109730.0,0.02921]
[1759025213199,0.81276022,109740.0,109730.0,0.02921]
[1759025215047,0.81276022,109740.0,109730.0,0.02601]
[1759025216849,0.52692022,109740.0,109730.0,0.02601]
[1759025217055,0.63035127,109740.0,109730.0,0.02601]
[1759025217454,0.81260022,109740.0,109730.0,0.02601]
[1759025218470,0.34467127,109740.0,109730.0,0.02601]
[1759025218714,0.63035127,109740.0,109730.0,0.02601]
[1759025219099,0.81260022,109740.0,109730.0,0.02601]
[1759025219630,0.82689727,109740.0,109730.0,0.02601]
[1759025219759,0.64464832,109740.0,109730.0,0.02601]
[1759025219959,0.35896832,109740.0,109730.0,0.02601]
[1759025220364,0.64456832,109740.0,109730.0,0.02601]
[1759025220779,0.82681727,109740.0,109730.0,0.024]